[Event "Early-Titled-Tuesday-Blitz-March-05-2024"]
[Site "Chess.com"]
[Date "2024.03.05"]
[Round "7"]
[White "Jospem"]
[Black "VladimirKramnik"]
[Result "1-0"]
[WhiteElo "3076"]
[BlackElo "2965"]
[TimeControl "180+1"]
[EndTime "9:19:40 PST"]
[Termination "Jospem won on time"]

1. e4 {[%clk 0:03:00.9]} 1... c5 {[%clk 0:02:59.9]} 2. Nf3 {[%clk 0:03:00.8]}
2... d6 {[%clk 0:03:00.1]} 3. c3 {[%clk 0:03:01.5]} 3... Nf6 {[%clk 0:02:59.9]}
4. h3 {[%clk 0:03:02.2]} 4... Nc6 {[%clk 0:02:57.4]} 5. Bd3 {[%clk 0:03:02.3]}
5... e5 {[%clk 0:02:54.9]} 6. Bc2 {[%clk 0:03:02.3]} 6... g6 {[%clk 0:02:53.4]}
7. d3 {[%clk 0:03:02.6]} 7... Bg7 {[%clk 0:02:52.9]} 8. Bg5 {[%clk 0:03:03.3]}
8... h6 {[%clk 0:02:51.7]} 9. Bxf6 {[%clk 0:03:03]} 9... Qxf6 {[%clk 0:02:49.7]}
10. Bb3 {[%clk 0:03:03.9]} 10... O-O {[%clk 0:02:46]} 11. Nbd2 {[%clk
0:03:04.1]} 11... Be6 {[%clk 0:02:41.2]} 12. Nf1 {[%clk 0:03:03.2]} 12... Qe7
{[%clk 0:02:15.8]} 13. Ne3 {[%clk 0:03:02.9]} 13... Kh7 {[%clk 0:02:15.1]} 14.
h4 {[%clk 0:02:57]} 14... Qd7 {[%clk 0:02:06.1]} 15. h5 {[%clk 0:02:54.7]} 15...
g5 {[%clk 0:02:06.2]} 16. g4 {[%clk 0:02:44.1]} 16... Ne7 {[%clk 0:02:00.7]} 17.
Qe2 {[%clk 0:02:41.6]} 17... a5 {[%clk 0:01:54.5]} 18. Nd2 {[%clk 0:02:27.2]}
18... a4 {[%clk 0:01:52.7]} 19. Bd5 {[%clk 0:02:27.9]} 19... Rab8 {[%clk
0:01:44.2]} 20. Rh3 {[%clk 0:02:01]} 20... Bxd5 {[%clk 0:01:36.7]} 21. exd5
{[%clk 0:01:53.7]} 21... f5 {[%clk 0:01:36.2]} 22. gxf5 {[%clk 0:01:54.1]} 22...
Nxf5 {[%clk 0:01:36.2]} 23. Nxf5 {[%clk 0:01:54.5]} 23... Rxf5 {[%clk
0:01:29.8]} 24. Ne4 {[%clk 0:01:52.8]} 24... Rf4 {[%clk 0:01:22.6]} 25. Rg3
{[%clk 0:01:50]} 25... Rbf8 {[%clk 0:01:17.7]} 26. O-O-O {[%clk 0:01:42.2]}
26... b5 {[%clk 0:01:17.7]} 27. Rdg1 {[%clk 0:01:36.2]} 27... Qb7 {[%clk
0:01:05.8]} 28. c4 {[%clk 0:01:25.7]} 28... bxc4 {[%clk 0:01:05.3]} 29. dxc4
{[%clk 0:01:26.6]} 29... Qe7 {[%clk 0:00:49.4]} 30. Re3 {[%clk 0:01:18.8]} 30...
Rh4 {[%clk 0:00:46]} 31. Qc2 {[%clk 0:01:17.8]} 31... Kh8 {[%clk 0:00:45.2]} 32.
Qxa4 {[%clk 0:01:16.5]} 32... Rxh5 {[%clk 0:00:44.4]} 33. Qc6 {[%clk 0:01:16.8]}
33... Rd8 {[%clk 0:00:41.9]} 34. a4 {[%clk 0:01:14.3]} 34... Bf8 {[%clk
0:00:29.1]} 35. a5 {[%clk 0:01:04.5]} 35... Rh4 {[%clk 0:00:26.8]} 36. a6 {[%clk
0:01:01.6]} 36... Qa7 {[%clk 0:00:23.1]} 37. Kc2 {[%clk 0:01:00.3]} 37... Rb8
{[%clk 0:00:20.2]} 38. Ra1 {[%clk 0:00:58.3]} 38... Rf4 {[%clk 0:00:16]} 39.
Raa3 {[%clk 0:00:45.4]} 39... Rb6 {[%clk 0:00:14.5]} 40. Qxb6 {[%clk 0:00:43]}
40... Qxb6 {[%clk 0:00:14.2]} 41. a7 {[%clk 0:00:43.9]} 41... Qb4 {[%clk
0:00:07.6]} 42. a8=Q {[%clk 0:00:43.4]} 42... Qxc4+ {[%clk 0:00:08.2]} 43. Rac3
{[%clk 0:00:42.9]} 43... Qf1 {[%clk 0:00:06.2]} 44. Nd2 {[%clk 0:00:36.1]} 44...
Qxf2 {[%clk 0:00:03.7]} 45. Rf3 {[%clk 0:00:36.4]} 45... Qd4 {[%clk 0:00:02.8]}
46. Rxf4 {[%clk 0:00:36.5]} 46... Qxf4 {[%clk 0:00:01.1]} 47. Rf3 {[%clk
0:00:36.4]} 1-0

[Event "Early-Titled-Tuesday-Blitz-March-05-2024"]
[Site "Chess.com"]
[Date "2024.03.05"]
[Round "7"]
[White "santosalberto1987"]
[Black "Igor_Lysyj"]
[Result "0-1"]
[WhiteElo "2549"]
[BlackElo "2820"]
[TimeControl "180+1"]
[EndTime "9:19:42 PST"]
[Termination "Igor_Lysyj won by resignation"]

1. e4 {[%clk 0:03:00.9]} 1... e5 {[%clk 0:02:59.5]} 2. Nf3 {[%clk 0:03:00.8]}
2... Nc6 {[%clk 0:02:59.7]} 3. Bc4 {[%clk 0:03:00.8]} 3... Bc5 {[%clk
0:02:59.2]} 4. O-O {[%clk 0:03:00.6]} 4... Nf6 {[%clk 0:02:58.4]} 5. d4 {[%clk
0:03:00.7]} 5... Bxd4 {[%clk 0:02:57.3]} 6. Nxd4 {[%clk 0:03:00.2]} 6... Nxd4
{[%clk 0:02:57.6]} 7. Bg5 {[%clk 0:03:00.6]} 7... h6 {[%clk 0:02:53.4]} 8. Bh4
{[%clk 0:03:00.5]} 8... d6 {[%clk 0:02:53.9]} 9. f4 {[%clk 0:03:00.5]} 9... Bg4
{[%clk 0:02:54.1]} 10. Bxf6 {[%clk 0:02:40.5]} 10... Bxd1 {[%clk 0:02:52.6]} 11.
Bxd8 {[%clk 0:02:40.7]} 11... Rxd8 {[%clk 0:02:36.9]} 12. Rxd1 {[%clk
0:02:38.6]} 12... Nxc2 {[%clk 0:02:37.1]} 13. Nc3 {[%clk 0:02:32.7]} 13... Nxa1
{[%clk 0:02:36]} 14. Rxa1 {[%clk 0:02:32.9]} 14... exf4 {[%clk 0:02:36.6]} 15.
Nd5 {[%clk 0:02:32.8]} 15... O-O {[%clk 0:02:35.1]} 16. Nxf4 {[%clk 0:02:28.6]}
16... Rfe8 {[%clk 0:02:33.6]} 17. Bd3 {[%clk 0:02:28]} 17... c6 {[%clk
0:02:33.7]} 18. Kf2 {[%clk 0:02:22.3]} 18... g6 {[%clk 0:02:32.5]} 19. Rc1
{[%clk 0:02:19]} 19... Kg7 {[%clk 0:02:32.3]} 20. h4 {[%clk 0:02:17.8]} 20...
Re5 {[%clk 0:02:23]} 21. Kf3 {[%clk 0:02:15.8]} 21... Rde8 {[%clk 0:02:19.9]}
22. Rd1 {[%clk 0:02:15.5]} 22... Rd8 {[%clk 0:02:13.8]} 23. Bc2 {[%clk
0:02:11.8]} 23... Ra5 {[%clk 0:01:59.7]} 24. Bb3 {[%clk 0:02:11.1]} 24... Re5
{[%clk 0:01:54.3]} 25. Rd4 {[%clk 0:02:01.3]} 25... b5 {[%clk 0:01:36.6]} 26.
Rd1 {[%clk 0:01:49.4]} 26... a5 {[%clk 0:01:34.4]} 27. a3 {[%clk 0:01:40.1]}
27... a4 {[%clk 0:01:28.6]} 28. Ba2 {[%clk 0:01:40]} 28... Rc5 {[%clk
0:01:21.1]} 29. Nd3 {[%clk 0:01:22.4]} 29... Rh5 {[%clk 0:01:21]} 30. g3 {[%clk
0:01:17.8]} 30... f5 {[%clk 0:01:16.5]} 31. Re1 {[%clk 0:01:08]} 31... fxe4+
{[%clk 0:01:10.3]} 32. Rxe4 {[%clk 0:01:08.9]} 32... Rf5+ {[%clk 0:01:08.3]} 33.
Nf4 {[%clk 0:01:05.9]} 33... d5 {[%clk 0:00:43.2]} 34. Re6 {[%clk 0:01:01.7]}
34... Rf6 {[%clk 0:00:40.5]} 35. Re7+ {[%clk 0:00:44.7]} 35... Kf8 {[%clk
0:00:35.7]} 36. Re5 {[%clk 0:00:27.4]} 36... Re8 {[%clk 0:00:35.7]} 37. Rxe8+
{[%clk 0:00:24.8]} 37... Kxe8 {[%clk 0:00:36]} 38. Ke3 {[%clk 0:00:25]} 38... g5
{[%clk 0:00:34]} 39. hxg5 {[%clk 0:00:25.1]} 39... hxg5 {[%clk 0:00:34.1]} 40.
Nd3 {[%clk 0:00:24.9]} 40... Re6+ {[%clk 0:00:31]} 41. Kd4 {[%clk 0:00:24.3]}
41... Ke7 {[%clk 0:00:25.8]} 42. Ne5 {[%clk 0:00:19.5]} 42... Kd6 {[%clk
0:00:19.1]} 43. Nxc6 {[%clk 0:00:19.4]} 43... Re4+ {[%clk 0:00:18.1]} 0-1

[Event "Early-Titled-Tuesday-Blitz-March-05-2024"]
[Site "Chess.com"]
[Date "2024.03.05"]
[Round "7"]
[White "ninguno46"]
[Black "Aleksandar-Topalov"]
[Result "1-0"]
[WhiteElo "2533"]
[BlackElo "2347"]
[TimeControl "180+1"]
[EndTime "9:19:42 PST"]
[Termination "ninguno46 won on time"]

1. e4 {[%clk 0:02:59.4]} 1... e6 {[%clk 0:02:59.6]} 2. d4 {[%clk 0:02:58.9]}
2... d5 {[%clk 0:02:59.5]} 3. Nc3 {[%clk 0:02:59.5]} 3... Bb4 {[%clk 0:02:58.7]}
4. e5 {[%clk 0:02:59.8]} 4... Qd7 {[%clk 0:02:58.7]} 5. Bd2 {[%clk 0:02:57]}
5... b6 {[%clk 0:02:58.2]} 6. Nce2 {[%clk 0:02:55.5]} 6... Be7 {[%clk
0:02:55.3]} 7. h4 {[%clk 0:02:54.1]} 7... h5 {[%clk 0:02:54.6]} 8. Nf4 {[%clk
0:02:51.6]} 8... g6 {[%clk 0:02:54.3]} 9. Nf3 {[%clk 0:02:47.1]} 9... Ba6 {[%clk
0:02:53.9]} 10. Rc1 {[%clk 0:02:05.5]} 10... Bxf1 {[%clk 0:02:51.5]} 11. Rxf1
{[%clk 0:02:06.2]} 11... Nc6 {[%clk 0:02:38.2]} 12. Qe2 {[%clk 0:01:51.9]} 12...
Nh6 {[%clk 0:02:01.2]} 13. c4 {[%clk 0:01:50.6]} 13... Nb4 {[%clk 0:01:53]} 14.
a3 {[%clk 0:01:48.3]} 14... Nc6 {[%clk 0:01:29.6]} 15. cxd5 {[%clk 0:01:45.2]}
15... Nd8 {[%clk 0:01:19.3]} 16. Qc4 {[%clk 0:01:28.1]} 16... Rc8 {[%clk
0:01:11.5]} 17. d6 {[%clk 0:01:06]} 17... Bf8 {[%clk 0:00:44.2]} 18. d5 {[%clk
0:00:59.4]} 18... Nf5 {[%clk 0:00:38.3]} 19. dxc7 {[%clk 0:00:55.3]} 19... Nb7
{[%clk 0:00:32.5]} 20. dxe6 {[%clk 0:00:27.6]} 20... fxe6 {[%clk 0:00:31.5]} 21.
Nxe6 {[%clk 0:00:26.7]} 21... Nc5 {[%clk 0:00:26.9]} 22. Nxf8 {[%clk 0:00:20.4]}
22... Rxf8 {[%clk 0:00:23.2]} 23. Ke2 {[%clk 0:00:17.4]} 23... Rxc7 {[%clk
0:00:21.2]} 24. b4 {[%clk 0:00:14.6]} 24... Ne6 {[%clk 0:00:19.9]} 25. Qd3
{[%clk 0:00:13.3]} 25... Ned4+ {[%clk 0:00:12.8]} 26. Kd1 {[%clk 0:00:10.8]}
26... Rxc1+ {[%clk 0:00:10.3]} 27. Kxc1 {[%clk 0:00:09.2]} 27... Kf7 {[%clk
0:00:09]} 28. Ng5+ {[%clk 0:00:07.6]} 28... Kg8 {[%clk 0:00:08.4]} 29. Kb2
{[%clk 0:00:08]} 29... Rc8 {[%clk 0:00:07.6]} 30. Rc1 {[%clk 0:00:08.1]} 30...
Rxc1 {[%clk 0:00:06.3]} 31. Bxc1 {[%clk 0:00:08.4]} 31... Qd5 {[%clk 0:00:06.2]}
32. e6 {[%clk 0:00:07.9]} 32... Qe5 {[%clk 0:00:05.8]} 33. f4 {[%clk 0:00:07.4]}
33... Qd5 {[%clk 0:00:02.7]} 34. Qc3 {[%clk 0:00:07.9]} 34... Qxg2+ {[%clk
0:00:01.5]} 35. Kb1 {[%clk 0:00:08.5]} 1-0

[Event "Early-Titled-Tuesday-Blitz-March-05-2024"]
[Site "Chess.com"]
[Date "2024.03.05"]
[Round "7"]
[White "DKmirl"]
[Black "PawnEatingZombie"]
[Result "0-1"]
[WhiteElo "2320"]
[BlackElo "2200"]
[TimeControl "180+1"]
[EndTime "9:19:42 PST"]
[Termination "PawnEatingZombie won on time"]

1. d4 {[%clk 0:03:00.9]} 1... Nf6 {[%clk 0:02:59.2]} 2. Nf3 {[%clk 0:03:00.9]}
2... g6 {[%clk 0:02:59.4]} 3. g3 {[%clk 0:02:59.4]} 3... Bg7 {[%clk 0:02:59.6]}
4. Bg2 {[%clk 0:02:59.1]} 4... O-O {[%clk 0:03:00.1]} 5. O-O {[%clk 0:02:58.6]}
5... d6 {[%clk 0:03:00.6]} 6. Nc3 {[%clk 0:02:58.2]} 6... c6 {[%clk 0:02:46.3]}
7. a4 {[%clk 0:02:56]} 7... a5 {[%clk 0:02:44.8]} 8. Re1 {[%clk 0:02:49.6]} 8...
Na6 {[%clk 0:02:42.7]} 9. e4 {[%clk 0:02:16.7]} 9... Nb4 {[%clk 0:02:38.4]} 10.
Bd2 {[%clk 0:02:04.1]} 10... Bg4 {[%clk 0:02:37.7]} 11. Qc1 {[%clk 0:01:58.2]}
11... Bxf3 {[%clk 0:02:31.7]} 12. Bxf3 {[%clk 0:01:56.6]} 12... e5 {[%clk
0:02:32.2]} 13. Be3 {[%clk 0:01:43.5]} 13... Re8 {[%clk 0:02:26.3]} 14. Rd1
{[%clk 0:01:40.8]} 14... Qc7 {[%clk 0:02:22.6]} 15. Rd2 {[%clk 0:01:25.3]} 15...
Nd7 {[%clk 0:02:09.1]} 16. d5 {[%clk 0:01:16.9]} 16... Nc5 {[%clk 0:01:45.2]}
17. Bg4 {[%clk 0:00:39]} 17... Rad8 {[%clk 0:01:38.3]} 18. Qd1 {[%clk
0:00:32.6]} 18... h6 {[%clk 0:01:19.7]} 19. Bxc5 {[%clk 0:00:30.2]} 19... dxc5
{[%clk 0:01:18.6]} 20. d6 {[%clk 0:00:30.9]} 20... Qb6 {[%clk 0:01:11.6]} 21. d7
{[%clk 0:00:27.4]} 21... Re7 {[%clk 0:01:11.6]} 22. Qe2 {[%clk 0:00:21]} 22...
Na6 {[%clk 0:01:09.9]} 23. Qd3 {[%clk 0:00:16]} 23... Nb8 {[%clk 0:00:55.8]} 24.
Qc4 {[%clk 0:00:11.8]} 24... Rexd7 {[%clk 0:00:38.1]} 25. Bxd7 {[%clk
0:00:10.9]} 25... Rxd7 {[%clk 0:00:39]} 26. Rxd7 {[%clk 0:00:10.5]} 26... Nxd7
{[%clk 0:00:39.9]} 27. Rd1 {[%clk 0:00:10.9]} 27... Nf6 {[%clk 0:00:36.5]} 28.
b3 {[%clk 0:00:08.6]} 28... Bf8 {[%clk 0:00:29.3]} 29. Qd3 {[%clk 0:00:06.4]}
29... Kg7 {[%clk 0:00:27.7]} 30. Ne2 {[%clk 0:00:03.8]} 30... Qb4 {[%clk
0:00:24.7]} 31. Qc4 {[%clk 0:00:03.6]} 31... Qxc4 {[%clk 0:00:24.2]} 32. bxc4
{[%clk 0:00:03.8]} 32... Be7 {[%clk 0:00:22.1]} 33. Rb1 {[%clk 0:00:03.4]} 33...
Nxe4 {[%clk 0:00:19.1]} 34. Rxb7 {[%clk 0:00:03.4]} 34... Bd6 {[%clk 0:00:17.9]}
35. f3 {[%clk 0:00:03.2]} 35... Nd2 {[%clk 0:00:12.5]} 36. Kf2 {[%clk
0:00:02.2]} 36... Nxc4 {[%clk 0:00:12.5]} 37. Ra7 {[%clk 0:00:01.7]} 37... Kf6
{[%clk 0:00:12.3]} 0-1

[Event "Early-Titled-Tuesday-Blitz-March-05-2024"]
[Site "Chess.com"]
[Date "2024.03.05"]
[Round "7"]
[White "BrandonJiang123456"]
[Black "Pelusiansky"]
[Result "0-1"]
[WhiteElo "2165"]
[BlackElo "2569"]
[TimeControl "180+1"]
[EndTime "9:19:42 PST"]
[Termination "Pelusiansky won by resignation"]

1. e4 {[%clk 0:03:00.9]} 1... c6 {[%clk 0:02:53.4]} 2. d4 {[%clk 0:02:56]} 2...
d5 {[%clk 0:02:52.8]} 3. exd5 {[%clk 0:02:54.7]} 3... cxd5 {[%clk 0:02:52.9]} 4.
Bd3 {[%clk 0:02:55.3]} 4... Nc6 {[%clk 0:02:52.9]} 5. c3 {[%clk 0:02:53.7]} 5...
Nf6 {[%clk 0:02:52.9]} 6. Bf4 {[%clk 0:02:50.7]} 6... Bg4 {[%clk 0:02:51.9]} 7.
Qb3 {[%clk 0:02:48.6]} 7... Qd7 {[%clk 0:02:52.3]} 8. Nd2 {[%clk 0:02:44.8]}
8... e6 {[%clk 0:02:52.4]} 9. Ngf3 {[%clk 0:02:41.1]} 9... Bd6 {[%clk
0:02:42.6]} 10. Bxd6 {[%clk 0:02:29.2]} 10... Qxd6 {[%clk 0:02:41.5]} 11. O-O
{[%clk 0:02:29.7]} 11... O-O {[%clk 0:02:38.4]} 12. Rfe1 {[%clk 0:02:27.9]}
12... Bxf3 {[%clk 0:02:36.4]} 13. Nxf3 {[%clk 0:02:26.2]} 13... Rab8 {[%clk
0:02:37.1]} 14. Ne5 {[%clk 0:02:23.8]} 14... Nd7 {[%clk 0:02:37.2]} 15. Qc2
{[%clk 0:02:17.1]} 15... Ndxe5 {[%clk 0:02:23.9]} 16. Bxh7+ {[%clk 0:02:15]}
16... Kh8 {[%clk 0:02:23.8]} 17. dxe5 {[%clk 0:02:15.1]} 17... Nxe5 {[%clk
0:02:24.2]} 18. Bd3 {[%clk 0:02:09.2]} 18... Ng4 {[%clk 0:02:18.5]} 19. g3
{[%clk 0:02:08.1]} 19... f5 {[%clk 0:02:14.9]} 20. Be2 {[%clk 0:01:49.8]} 20...
Ne5 {[%clk 0:02:08.7]} 21. Rad1 {[%clk 0:01:47.2]} 21... Rbd8 {[%clk 0:02:01.7]}
22. Rd4 {[%clk 0:01:46.1]} 22... Nc6 {[%clk 0:01:58.6]} 23. Rh4+ {[%clk
0:01:44.7]} 23... Kg8 {[%clk 0:01:59.3]} 24. Bh5 {[%clk 0:01:43.4]} 24... Rf6
{[%clk 0:01:55.8]} 25. Bd1 {[%clk 0:01:31]} 25... d4 {[%clk 0:01:53.8]} 26. Qe2
{[%clk 0:01:27.5]} 26... dxc3 {[%clk 0:01:50.1]} 27. bxc3 {[%clk 0:01:26.5]}
27... Qd2 {[%clk 0:01:48.9]} 28. Bb3 {[%clk 0:01:19.3]} 28... Qxe2 {[%clk
0:01:44.2]} 29. Rxe2 {[%clk 0:01:14.6]} 29... Kf7 {[%clk 0:01:40.7]} 30. Rf4
{[%clk 0:00:50.8]} 30... Rd6 {[%clk 0:01:27.8]} 31. Rf3 {[%clk 0:00:48.4]} 31...
Na5 {[%clk 0:01:24]} 32. c4 {[%clk 0:00:32.8]} 32... b6 {[%clk 0:01:22.1]} 33.
Kg2 {[%clk 0:00:30.2]} 33... Nb7 {[%clk 0:01:21.5]} 34. h4 {[%clk 0:00:18.2]}
34... Nc5 {[%clk 0:01:21.1]} 35. Rfe3 {[%clk 0:00:17.8]} 35... f4 {[%clk
0:01:19.5]} 36. gxf4 {[%clk 0:00:17]} 36... Rd4 {[%clk 0:01:17.6]} 37. Rf3
{[%clk 0:00:14.7]} 37... Nd3 {[%clk 0:01:11.6]} 38. Kg3 {[%clk 0:00:13.6]} 38...
Nxf4 {[%clk 0:01:11.7]} 39. Ree3 {[%clk 0:00:11.6]} 39... Nh5+ {[%clk
0:01:09.7]} 40. Kg2 {[%clk 0:00:11.6]} 40... Rxh4 {[%clk 0:00:55]} 41. Rxf6+
{[%clk 0:00:11.5]} 41... Nxf6 {[%clk 0:00:46.7]} 42. c5 {[%clk 0:00:11.8]} 42...
bxc5 {[%clk 0:00:47.2]} 43. Rxe6 {[%clk 0:00:10.5]} 43... c4 {[%clk 0:00:46.8]}
44. Ra6 {[%clk 0:00:05.2]} 44... cxb3 {[%clk 0:00:46.3]} 45. Rxa7+ {[%clk
0:00:06]} 45... Kg6 {[%clk 0:00:46.6]} 46. axb3 {[%clk 0:00:06.4]} 46... Rb4
{[%clk 0:00:46.8]} 47. Rc7 {[%clk 0:00:05.3]} 47... Rxb3 {[%clk 0:00:45.8]} 48.
Rc5 {[%clk 0:00:05.2]} 48... Rb2 {[%clk 0:00:44.1]} 49. Rc3 {[%clk 0:00:04.6]}
49... Rxf2+ {[%clk 0:00:41.8]} 50. Kxf2 {[%clk 0:00:03.4]} 50... Ne4+ {[%clk
0:00:42.2]} 0-1

[Event "Early-Titled-Tuesday-Blitz-March-05-2024"]
[Site "Chess.com"]
[Date "2024.03.05"]
[Round "7"]
[White "Leonid_Starozhilov"]
[Black "DeArron_Fox"]
[Result "0-1"]
[WhiteElo "2699"]
[BlackElo "2531"]
[TimeControl "180+1"]
[EndTime "9:19:46 PST"]
[Termination "DeArron_Fox won on time"]

1. c4 {[%clk 0:03:00.9]} 1... e6 {[%clk 0:02:59.9]} 2. Nf3 {[%clk 0:02:59.8]}
2... d5 {[%clk 0:03:00.3]} 3. d4 {[%clk 0:03:00.2]} 3... Nf6 {[%clk 0:03:00.7]}
4. Nc3 {[%clk 0:03:00.4]} 4... Be7 {[%clk 0:03:01]} 5. e3 {[%clk 0:02:59.5]}
5... O-O {[%clk 0:03:01.5]} 6. Bd3 {[%clk 0:03:00.2]} 6... b6 {[%clk 0:03:00.4]}
7. cxd5 {[%clk 0:03:00.1]} 7... Nxd5 {[%clk 0:02:59]} 8. Nxd5 {[%clk 0:02:57.9]}
8... exd5 {[%clk 0:02:59.9]} 9. Ne5 {[%clk 0:02:48.4]} 9... h6 {[%clk
0:02:26.3]} 10. O-O {[%clk 0:02:46.5]} 10... c5 {[%clk 0:02:25.1]} 11. f4 {[%clk
0:02:37.6]} 11... Ba6 {[%clk 0:02:22.4]} 12. Bxa6 {[%clk 0:02:22.4]} 12... Nxa6
{[%clk 0:02:23.3]} 13. f5 {[%clk 0:02:22.9]} 13... Bf6 {[%clk 0:02:14.6]} 14.
Bd2 {[%clk 0:02:12.8]} 14... Re8 {[%clk 0:02:13.4]} 15. Bc3 {[%clk 0:02:06.1]}
15... Nc7 {[%clk 0:02:10]} 16. Qh5 {[%clk 0:01:54]} 16... Nb5 {[%clk 0:01:54.9]}
17. Qxf7+ {[%clk 0:01:45]} 17... Kh8 {[%clk 0:01:52.2]} 18. Qg6 {[%clk
0:01:31.3]} 18... Bxe5 {[%clk 0:01:45.1]} 19. dxe5 {[%clk 0:01:31.1]} 19... Nxc3
{[%clk 0:01:45.1]} 20. bxc3 {[%clk 0:01:22.7]} 20... Rxe5 {[%clk 0:01:32.2]} 21.
f6 {[%clk 0:01:22.8]} 21... Qc7 {[%clk 0:01:20.3]} 22. Rf4 {[%clk 0:00:54.1]}
22... Rg5 {[%clk 0:01:16]} 23. Qd3 {[%clk 0:00:54.2]} 23... Rf8 {[%clk
0:00:57.1]} 24. Raf1 {[%clk 0:00:49.4]} 24... Rxf6 {[%clk 0:00:50]} 25. Rxf6
{[%clk 0:00:48.3]} 25... gxf6 {[%clk 0:00:50.9]} 26. Rxf6 {[%clk 0:00:48.8]}
26... Qg7 {[%clk 0:00:50.4]} 27. Rf2 {[%clk 0:00:37.2]} 27... c4 {[%clk
0:00:27.7]} 28. Qd2 {[%clk 0:00:25.1]} 28... Qg6 {[%clk 0:00:16.7]} 29. h3
{[%clk 0:00:21.6]} 29... Qb1+ {[%clk 0:00:07.8]} 30. Kh2 {[%clk 0:00:21.8]}
30... Qe4 {[%clk 0:00:05]} 31. Rf4 {[%clk 0:00:20.7]} 31... Qe5 {[%clk 0:00:05]}
32. Qf2 {[%clk 0:00:14.5]} 32... Rf5 {[%clk 0:00:04.6]} 33. Qh4 {[%clk 0:00:14]}
33... Rxf4 {[%clk 0:00:02.7]} 34. Qxf4 {[%clk 0:00:10.9]} 34... Qxf4+ {[%clk
0:00:02.5]} 35. exf4 {[%clk 0:00:11.1]} 35... d4 {[%clk 0:00:03.4]} 0-1

[Event "Early-Titled-Tuesday-Blitz-March-05-2024"]
[Site "Chess.com"]
[Date "2024.03.05"]
[Round "7"]
[White "AttilaTurzo"]
[Black "M1711"]
[Result "1-0"]
[WhiteElo "2479"]
[BlackElo "2569"]
[TimeControl "180+1"]
[EndTime "9:19:47 PST"]
[Termination "AttilaTurzo won by checkmate"]

1. d4 {[%clk 0:03:00.9]} 1... d5 {[%clk 0:02:59.2]} 2. Nf3 {[%clk 0:03:00]} 2...
Nf6 {[%clk 0:02:58.8]} 3. Bf4 {[%clk 0:03:00.7]} 3... Bf5 {[%clk 0:02:53.8]} 4.
e3 {[%clk 0:02:59.7]} 4... e6 {[%clk 0:02:53.4]} 5. Bd3 {[%clk 0:03:00]} 5...
Bxd3 {[%clk 0:02:51.6]} 6. cxd3 {[%clk 0:02:59.5]} 6... c5 {[%clk 0:02:51.6]} 7.
Qb3 {[%clk 0:02:53.3]} 7... Qc8 {[%clk 0:02:33.9]} 8. Nc3 {[%clk 0:02:46]} 8...
Nc6 {[%clk 0:02:32.7]} 9. Nb5 {[%clk 0:02:42.2]} 9... e5 {[%clk 0:02:15.3]} 10.
dxe5 {[%clk 0:02:29]} 10... Nh5 {[%clk 0:02:15.1]} 11. Qxd5 {[%clk 0:02:29.1]}
11... Nxf4 {[%clk 0:02:14.5]} 12. exf4 {[%clk 0:02:29.1]} 12... Nb4 {[%clk
0:02:03.3]} 13. Qc4 {[%clk 0:02:19.7]} 13... Be7 {[%clk 0:01:59]} 14. O-O {[%clk
0:02:06.4]} 14... O-O {[%clk 0:01:58.7]} 15. a3 {[%clk 0:01:56.2]} 15... Nc6
{[%clk 0:01:58.3]} 16. d4 {[%clk 0:01:56.7]} 16... a6 {[%clk 0:01:46.4]} 17. Nd6
{[%clk 0:01:30.5]} 17... Bxd6 {[%clk 0:01:46]} 18. exd6 {[%clk 0:01:30.9]} 18...
cxd4 {[%clk 0:01:37.2]} 19. Nxd4 {[%clk 0:01:30.3]} 19... Nxd4 {[%clk
0:01:18.3]} 20. Qxd4 {[%clk 0:01:31.2]} 20... Rd8 {[%clk 0:01:16.6]} 21. Rfc1
{[%clk 0:01:18]} 21... Qe6 {[%clk 0:01:12.6]} 22. Rd1 {[%clk 0:01:17.8]} 22...
h6 {[%clk 0:01:09.1]} 23. g3 {[%clk 0:01:15.8]} 23... Rac8 {[%clk 0:01:08]} 24.
Rd2 {[%clk 0:01:14.5]} 24... Rd7 {[%clk 0:01:06.9]} 25. Rad1 {[%clk 0:01:13.9]}
25... Rcd8 {[%clk 0:01:06.1]} 26. Qe5 {[%clk 0:01:13.5]} 26... Qc4 {[%clk
0:00:52.5]} 27. Rd4 {[%clk 0:01:11.4]} 27... Qc6 {[%clk 0:00:51.6]} 28. Rd5
{[%clk 0:01:04.4]} 28... Qc2 {[%clk 0:00:48.7]} 29. Qd4 {[%clk 0:00:59.5]} 29...
Qc6 {[%clk 0:00:45.5]} 30. f5 {[%clk 0:00:58.9]} 30... f6 {[%clk 0:00:42.5]} 31.
g4 {[%clk 0:00:52.6]} 31... Kh7 {[%clk 0:00:41.7]} 32. h4 {[%clk 0:00:52.8]}
32... Qc2 {[%clk 0:00:30.2]} 33. Qd2 {[%clk 0:00:47.4]} 33... Qe4 {[%clk
0:00:27.6]} 34. Rd4 {[%clk 0:00:44.2]} 34... Qf3 {[%clk 0:00:27.4]} 35. Qe3
{[%clk 0:00:42.1]} 35... Qc6 {[%clk 0:00:24.5]} 36. Qf4 {[%clk 0:00:40.6]} 36...
Qc5 {[%clk 0:00:16.1]} 37. g5 {[%clk 0:00:38.7]} 37... fxg5 {[%clk 0:00:15.1]}
38. hxg5 {[%clk 0:00:39.1]} 38... hxg5 {[%clk 0:00:09.3]} 39. Qxg5 {[%clk
0:00:34.2]} 39... Qe5 {[%clk 0:00:08.5]} 40. Qg6+ {[%clk 0:00:31.9]} 40... Kg8
{[%clk 0:00:06.5]} 41. Qe6+ {[%clk 0:00:30.6]} 41... Qxe6 {[%clk 0:00:02.4]} 42.
fxe6 {[%clk 0:00:31.5]} 42... Rxd6 {[%clk 0:00:01.6]} 43. Rxd6 {[%clk 0:00:31]}
43... Rxd6 {[%clk 0:00:02.3]} 44. Rxd6 {[%clk 0:00:31.4]} 44... Kf8 {[%clk
0:00:03.2]} 45. Rd7 {[%clk 0:00:31.2]} 45... Ke8 {[%clk 0:00:03.4]} 46. Rxg7
{[%clk 0:00:31.3]} 46... b5 {[%clk 0:00:03.4]} 47. Ra7 {[%clk 0:00:31]} 47... b4
{[%clk 0:00:04.3]} 48. axb4 {[%clk 0:00:30.7]} 48... Kd8 {[%clk 0:00:05.2]} 49.
f4 {[%clk 0:00:30.2]} 49... Ke8 {[%clk 0:00:06.1]} 50. f5 {[%clk 0:00:30.6]}
50... Kd8 {[%clk 0:00:07]} 51. f6 {[%clk 0:00:31.1]} 51... Ke8 {[%clk
0:00:07.9]} 52. f7+ {[%clk 0:00:31.1]} 52... Kd8 {[%clk 0:00:08.8]} 53. f8=Q#
{[%clk 0:00:30.9]} 1-0